bitfinex/quotes_BTCUSD_20250809
["timestamp","ask_amount","ask_price","bid_price","bid_amount"]
[1754743617261,0.00114161,117120.0,117110.0,1.3082836]
[1754743617750,0.00114161,117120.0,117110.0,1.5082836]
[1754743618968,0.00114161,117120.0,117110.0,0.8777646]
[1754743619234,0.00114161,117120.0,117110.0,1.5082836]
[1754743620448,0.00114161,117120.0,117110.0,1.1930241]
[1754743624562,0.00114161,117120.0,117110.0,1.5082836]
[1754743625220,0.00114161,117120.0,117110.0,1.1930241]
[1754743629633,0.00114161,117120.0,117110.0,1.2829641]
[1754743629819,0.00114161,117120.0,117110.0,1.1930241]
[1754743630024,0.00114161,117120.0,117110.0,1.5082836]
[1754743631630,0.00114161,117120.0,117110.0,1.1930241]
[1754743632636,0.00114161,117120.0,117110.0,1.5082836]
[1754743636463,0.00114161,117120.0,117110.0,0.8777646]
[1754743636664,0.00114161,117120.0,117110.0,1.5082836]
[1754743636870,0.00114161,117120.0,117110.0,1.1930241]
[1754743640401,0.00114161,117120.0,117110.0,1.1899141]
[1754743641874,0.00114161,117120.0,117110.0,1.0586341]
[1754743642083,0.00114161,117120.0,117110.0,1.1894741]
[1754743643908,0.00114161,117120.0,117110.0,0.8742146]
[1754743644350,0.00114161,117120.0,117110.0,1.1894741]
[1754743646449,0.00114161,117120.0,117110.0,0.8742146]
[1754743646667,0.00114161,117120.0,117110.0,1.1894741]
[1754743647426,0.00114161,117120.0,117110.0,0.8742146]
[1754743647642,0.00114161,117120.0,117110.0,1.1894741]
[1754743650536,0.00114161,117120.0,117110.0,0.8742146]
[1754743650746,0.00114161,117120.0,117110.0,1.1894741]
[1754743654515,0.00114161,117120.0,117110.0,0.8742146]
[1754743654714,0.00114161,117120.0,117110.0,1.1894741]
[1754743656621,0.00114161,117120.0,117110.0,0.8742146]
[1754743657040,0.00114161,117120.0,117110.0,1.1894741]
[1754743660263,0.00114161,117120.0,117110.0,1.1926041]
[1754743660494,0.00114161,117120.0,117110.0,1.5078636]
[1754743665634,0.00114161,117120.0,117110.0,1.59472571]
[1754743665854,8.406e-05,117120.0,117110.0,1.59472571]
[1754743669477,8.406e-05,117120.0,117110.0,1.86052571]
[1754743669896,0.00321,117140.0,117130.0,0.17075044]
[1754743670100,0.00524,117140.0,117130.0,0.61933658]
[1754743670304,0.00524,117140.0,117130.0,0.6172022]
[1754743670723,0.00524,117140.0,117130.0,0.62593248]
[1754743672855,0.00724,117140.0,117130.0,0.62897248]
[1754743676923,0.00724,117140.0,117130.0,0.31371298]
[1754743677221,0.00724,117140.0,117130.0,0.62897248]
[1754743678689,0.00724,117140.0,117130.0,0.62693248]
[1754743685790,0.00724,117140.0,117130.0,0.31167298]
[1754743686009,0.00724,117140.0,117130.0,0.62693248]
[1754743688193,0.00724,117140.0,117130.0,0.62897248]
[1754743690997,0.17797587,117140.0,117130.0,0.62897248]
[1754743691728,0.00724,117140.0,117130.0,0.62897248]
[1754743699952,0.00403,117140.0,117130.0,0.62897248]
[1754743700371,0.00183814,117140.0,117130.0,0.62897248]
[1754743700575,0.00183814,117140.0,117130.0,0.63194248]
[1754743707883,0.00183814,117140.0,117130.0,0.31668298]
[1754743708100,0.00385814,117140.0,117130.0,0.63194248]
[1754743710985,0.00183814,117140.0,117130.0,0.63194248]
[1754743716484,0.00183814,117140.0,117130.0,0.31668298]
[1754743716690,0.00183814,117140.0,117130.0,0.63194248]
[1754743732970,0.00183814,117140.0,117130.0,0.94720198]
[1754743733147,0.00183814,117140.0,117130.0,0.63194248]
[1754743733516,0.00183814,117140.0,117130.0,0.94720198]
[1754743734357,0.00183814,117140.0,117130.0,0.63194248]
[1754743736639,0.00183814,117140.0,117130.0,0.94720198]
[1754743738139,0.00183814,117140.0,117130.0,0.63194248]
[1754743738340,0.00183814,117140.0,117130.0,0.31668298]
[1754743738720,0.00183814,117140.0,117130.0,0.63194248]
[1754743738920,0.00183814,117140.0,117130.0,0.65194248]
[1754743739130,0.00183814,117140.0,117130.0,0.63194248]
[1754743741160,0.00183814,117140.0,117130.0,0.31668298]
[1754743741366,0.00183814,117140.0,117130.0,0.63194248]
[1754743741569,0.00183814,117140.0,117130.0,0.31668298]
[1754743741806,0.00183814,117140.0,117130.0,0.63194248]
[1754743742998,0.00183814,117140.0,117130.0,0.94720198]
[1754743743174,7.483e-05,117140.0,117130.0,1.03406409]
[1754743744233,7.483e-05,117140.0,117130.0,1.05969309]
[1754743744708,0.18238625,117170.0,117150.0,0.1707124]
[1754743744977,0.00208,117160.0,117150.0,0.48810591]
[1754743745170,0.00513,117160.0,117150.0,0.6163319]
[1754743746105,0.00513,117160.0,117150.0,0.6184419]
[1754743747792,0.00208,117160.0,117150.0,0.6184419]
[1754743748028,0.00208,117160.0,117150.0,0.6214919]
[1754743751111,0.00208,117160.0,117150.0,0.3062324]
[1754743751323,0.00208,117160.0,117150.0,0.6214919]
[1754743751764,0.00208,117160.0,117150.0,0.6184419]
[1754743751993,0.00208,117160.0,117150.0,0.3031824]
[1754743752209,0.00208,117160.0,117150.0,0.6184419]
[1754743755696,0.17278672,117160.0,117150.0,0.6184419]
[1754743758500,0.00208,117160.0,117150.0,0.6184419]
[1754743759130,0.00208,117160.0,117150.0,0.6215819]
[1754743759286,0.17278672,117160.0,117150.0,0.3063224]
[1754743759482,0.17278672,117160.0,117150.0,0.6215819]
[1754743761707,0.19983527,117170.0,117160.0,0.17070672]
[1754743761942,0.20194527,117170.0,117160.0,0.61628622]
[1754743762112,0.18449625,117170.0,117160.0,0.61839622]
[1754743762314,0.18144625,117170.0,117160.0,0.61839622]
[1754743762520,0.18439625,117170.0,117160.0,0.61839622]
[1754743762986,0.18939625,117170.0,117160.0,0.61939622]
[1754743763823,0.18644625,117170.0,117160.0,0.62253622]
[1754743764237,0.18644625,117170.0,117160.0,0.61939622]
[1754743764650,0.18939625,117170.0,117160.0,0.61939622]
[1754743768549,0.18939625,117170.0,117160.0,0.30413672]
[1754743769451,0.18939625,117170.0,117160.0,0.13343]
[1754743769877,0.18939625,117170.0,117160.0,0.13132]
[1754743774402,0.18939625,117170.0,117160.0,0.4465795]
[1754743778188,0.18939625,117170.0,117160.0,0.4486895]
[1754743782210,0.18939625,117170.0,117160.0,0.13343]
[1754743782417,0.18939625,117170.0,117160.0,0.4486895]
[1754743783371,0.18644625,117170.0,117160.0,0.4486895]
[1754743784197,0.20684527,117170.0,117160.0,0.001]
[1754743784428,0.33146916,117170.0,117160.0,0.13128]
[1754743787575,0.35709916,117170.0,117160.0,0.13128]
[1754743799361,0.35709916,117170.0,117160.0,0.13343]
[1754743800115,0.35414916,117170.0,117160.0,0.13343]
[1754743801455,0.35402916,117170.0,117160.0,0.13636]
[1754743802113,0.35402916,117170.0,117160.0,0.13343]
[1754743806143,0.32839916,117170.0,117160.0,0.13343]
[1754743809137,0.29063738,117170.0,117160.0,0.13343]
[1754743812547,0.20178527,117170.0,117160.0,0.61939622]
[1754743812793,0.20178527,117170.0,117160.0,0.4516195]
[1754743812996,0.20178527,117170.0,117160.0,0.13636]
[1754743813191,0.20178527,117170.0,117160.0,0.4516195]
[1754743816772,0.20178527,117170.0,117160.0,0.13636]
[1754743816987,0.20178527,117170.0,117160.0,0.4516195]
[1754743817181,0.24190605,117170.0,117160.0,0.4516195]
[1754743817308,0.20178527,117170.0,117160.0,0.62232622]
[1754743817523,0.20178527,117170.0,117160.0,0.93758572]
[1754743817755,0.20178527,117170.0,117160.0,0.62232622]
[1754743817971,0.02244902,117170.0,117160.0,0.93758572]
[1754743818194,0.02244902,117170.0,117160.0,0.62232622]
[1754743819263,0.19314117,117170.0,117160.0,0.30706672]
[1754743819480,0.19314117,117170.0,117160.0,0.62232622]
[1754743833806,0.02244902,117170.0,117160.0,0.62232622]
[1754743834071,0.02244902,117170.0,117160.0,0.30706672]
[1754743834256,0.02244902,117170.0,117160.0,0.62232622]
[1754743835269,0.02244902,117170.0,117160.0,0.30706672]
[1754743835469,0.02244902,117170.0,117160.0,0.62232622]
[1754743835809,0.19314117,117170.0,117160.0,0.62232622]
[1754743843353,0.02244902,117170.0,117160.0,0.62232622]
[1754743847687,0.19314117,117170.0,117160.0,0.62232622]
[1754743849685,0.19314117,117170.0,117160.0,0.30706672]
[1754743849896,0.19314117,117170.0,117160.0,0.62232622]
[1754743855494,0.02244902,117170.0,117160.0,0.62232622]
[1754743856938,0.19314117,117170.0,117160.0,0.62232622]
[1754743858966,0.19523117,117170.0,117160.0,0.4516195]
[1754743859168,0.19523117,117170.0,117160.0,0.4486895]
[1754743860535,0.19523117,117170.0,117160.0,0.00315]
[1754743860770,0.23528554,117170.0,117160.0,0.13104]
[1754743860985,0.32214765,117170.0,117160.0,0.13104]
[1754743862851,0.45218765,117170.0,117160.0,0.13104]
[1754743864424,0.45218765,117170.0,117160.0,0.001]
[1754743864808,0.32214765,117170.0,117160.0,0.001]
[1754743867052,0.34711765,117170.0,117160.0,0.001]
[1754743869472,0.37275065,117170.0,117160.0,0.001]
[1754743876769,0.34778065,117170.0,117160.0,0.001]
[1754743914551,0.34255065,117170.0,117160.0,0.00632]
[1754743915968,0.34255065,117170.0,117160.0,0.3215795]
[1754743916215,0.31691765,117170.0,117160.0,0.3215795]
[1754743917160,0.31691765,117170.0,117160.0,0.00632]
[1754743921936,0.31691765,117170.0,117160.0,0.3215795]
[1754743922144,0.31691765,117170.0,117160.0,0.00632]
[1754743925249,0.31898765,117170.0,117160.0,0.00632]
[1754743928936,0.31898765,117170.0,117160.0,0.00309]
[1754743930678,0.31898765,117170.0,117160.0,0.3215795]
[1754743930894,0.31691765,117170.0,117160.0,0.3215795]
[1754743934932,0.65691765,117170.0,117160.0,0.00632]
[1754743935181,0.65691765,117170.0,117160.0,0.3215795]
[1754743940402,0.53314117,117170.0,117160.0,0.3215795]
[1754743940617,0.02244902,117170.0,117160.0,0.80754572]
[1754743941487,0.02044902,117170.0,117160.0,0.80754572]
[1754743941721,0.02144902,117170.0,117160.0,0.80754572]
[1754743941941,0.02044902,117170.0,117160.0,0.80754572]
[1754743942169,0.01744902,117170.0,117160.0,0.80654572]
[1754743942597,0.01944902,117170.0,117160.0,0.80754572]
[1754743943004,0.01744902,117170.0,117160.0,0.80654572]
[1754743943477,0.01844902,117170.0,117160.0,0.80654572]
[1754743943914,0.001,117170.0,117160.0,0.80654572]
[1754743945892,0.001,117170.0,117160.0,0.17602672]
[1754743946133,0.001,117170.0,117160.0,0.80654572]
[1754743957164,0.001,117170.0,117160.0,0.17602672]
[1754743957379,0.001,117170.0,117160.0,0.80654572]
[1754743959524,0.001,117170.0,117160.0,0.17602672]
[1754743959951,0.001,117170.0,117160.0,0.80654572]
[1754743962405,0.001,117170.0,117160.0,0.93642572]
[1754743963237,0.001,117170.0,117160.0,0.30590672]
[1754743963449,0.001,117170.0,117160.0,0.93642572]
[1754743973196,0.001,117170.0,117160.0,0.30590672]
[1754743973428,0.001,117170.0,117160.0,0.93642572]
[1754743978792,0.19966332,117190.0,117170.0,0.17067812]
[1754743979005,0.00203,117180.0,117170.0,0.17263812]
[1754743979233,0.00203,117180.0,117170.0,0.30247812]
[1754743979452,0.19966332,117190.0,117180.0,0.17067759]
[1754743979660,0.27529512,117190.0,117180.0,0.30051759]
[1754743979873,0.20177415,117190.0,117180.0,0.30051759]
[1754743980076,0.20377415,117190.0,117180.0,0.61577709]
[1754743980289,0.20377415,117190.0,117180.0,0.30051759]
[1754743980928,0.20577415,117190.0,117180.0,0.61577709]
[1754743981956,0.20377415,117190.0,117180.0,0.61577709]
[1754743982357,0.20677415,117190.0,117180.0,0.61873709]
[1754743982572,0.00508083,117190.0,117180.0,0.93699659]
[1754743983052,0.00508083,117190.0,117180.0,0.94543002]
[1754743983702,0.00308083,117190.0,117180.0,0.94543002]
[1754743984145,8.083e-05,117190.0,117180.0,0.94443002]
[1754743985953,0.00308083,117190.0,117180.0,0.94543002]
[1754743986173,0.00308083,117190.0,117180.0,0.63017052]
[1754743986402,8.083e-05,117190.0,117180.0,0.62917052]
[1754743986845,0.00208083,117190.0,117180.0,0.62917052]
[1754743990284,0.00208083,117190.0,117180.0,0.94443002]
[1754743995709,0.00208083,117190.0,117180.0,0.31391102]
[1754743995910,0.00208083,117190.0,117180.0,0.94443002]
[1754743997025,0.17274385,117190.0,117180.0,0.94443002]
[1754743998056,0.17274385,117190.0,117180.0,0.62917052]
[1754743998976,0.00208083,117190.0,117180.0,0.62917052]
[1754743999716,0.00208083,117190.0,117180.0,0.31391102]
[1754743999924,0.00208083,117190.0,117180.0,0.62917052]
[1754744002378,0.00208083,117190.0,117180.0,0.31391102]
[1754744002587,0.17474385,117190.0,117180.0,0.31387102]
[1754744002756,0.17474385,117190.0,117180.0,0.62613052]
[1754744004328,0.17789385,117190.0,117180.0,0.62417052]
[1754744005253,0.17789385,117190.0,117180.0,0.62622052]
[1754744006585,0.17474385,117190.0,117180.0,0.62622052]
[1754744007857,0.17474385,117190.0,117180.0,0.62938052]
[1754744008289,0.17474385,117190.0,117180.0,0.31412102]
[1754744008489,0.17474385,117190.0,117180.0,0.62938052]
[1754744009178,0.17789385,117190.0,117180.0,0.13819343]
[1754744009406,0.19534287,117190.0,117180.0,0.13819343]
[1754744011437,0.19534287,117190.0,117180.0,0.45345293]
[1754744012677,0.19534287,117190.0,117180.0,0.14024343]
[1754744012924,0.19534287,117190.0,117180.0,0.45550293]
[1754744019282,0.19219287,117190.0,117180.0,0.45550293]
[1754744026085,0.19219287,117190.0,117180.0,0.45866293]
[1754744028815,0.19219287,117190.0,117180.0,0.62934052]
[1754744030646,0.19219287,117190.0,117180.0,0.45866293]
[1754744031971,0.19219287,117190.0,117180.0,0.62934052]
[1754744032724,0.19219287,117190.0,117180.0,0.31408102]
[1754744033108,0.19219287,117190.0,117180.0,0.62934052]
[1754744033285,0.19219287,117190.0,117180.0,0.31408102]
[1754744033502,0.19219287,117190.0,117180.0,0.62934052]
[1754744035035,0.19019287,117190.0,117180.0,0.62934052]
[1754744035888,0.19019287,117190.0,117180.0,0.94460002]
[1754744036933,0.19019287,117190.0,117180.0,0.62934052]
[1754744042166,0.19019287,117190.0,117180.0,0.96460002]
[1754744042424,0.19019287,117190.0,117180.0,0.62934052]
[1754744042634,0.00208083,117190.0,117180.0,0.94460002]
[1754744048805,0.00208083,117190.0,117180.0,0.97022002]
[1754744057481,0.00208083,117190.0,117180.0,0.33970102]
[1754744057482,0.17474385,117190.0,117180.0,0.33970102]
[1754744057624,0.17474385,117190.0,117180.0,0.65496052]
[1754744057824,0.17474385,117190.0,117180.0,0.65180052]
[1754744058033,0.17778385,117190.0,117180.0,0.35136293]
[1754744058241,0.20520602,117190.0,117180.0,0.13815343]
[1754744059014,0.19523287,117190.0,117180.0,0.13815343]
[1754744059584,0.19523287,117190.0,117180.0,0.45341293]
[1754744065364,0.19523287,117190.0,117180.0,0.13815343]
[1754744069779,0.21409678,117190.0,117180.0,0.13815343]
[1754744095338,0.21409678,117190.0,117180.0,0.14017343]
[1754744095539,0.25257134,117190.0,117180.0,0.14017343]
[1754744097239,0.24953134,117190.0,117180.0,0.14017343]
[1754744100603,0.25255134,117190.0,117180.0,0.14017343]
[1754744104439,0.33941345,117190.0,117180.0,0.00843343]
[1754744104638,0.33941345,117190.0,117180.0,0.13811343]
[1754744104808,0.33941345,117190.0,117180.0,0.12968]
[1754744105039,0.33941345,117190.0,117180.0,0.13821692]
[1754744109588,0.17069215,117170.0,117160.0,0.07254762]
[1754744109789,0.17069215,117170.0,117160.0,0.20424762]
[1754744110216,0.17069215,117170.0,117160.0,0.21271248]
[1754744110646,0.17069215,117170.0,117160.0,0.21671248]
[1754744110983,0.17169215,117170.0,117160.0,0.21971248]
[1754744118164,0.17372215,117170.0,117160.0,0.21971248]
[1754744119182,0.21102798,117170.0,117160.0,0.21664248]
[1754744119386,0.21419798,117170.0,117160.0,0.21664248]
[1754744119790,0.31850911,117170.0,117160.0,0.01546486]
[1754744119991,0.31850911,117170.0,117160.0,0.14514486]
[1754744120288,0.34413811,117170.0,117160.0,0.14514486]
[1754744125406,0.34313811,117170.0,117160.0,0.14214486]
[1754744125605,0.34313811,117170.0,117160.0,0.13814486]
[1754744125744,0.34313811,117170.0,117160.0,0.14114486]
[1754744127094,0.34413811,117170.0,117160.0,0.14314486]
[1754744130369,0.34413811,117170.0,117160.0,0.14522486]
[1754744130858,0.34096811,117170.0,117160.0,0.14816486]
[1754744135285,0.33893811,117170.0,117160.0,0.31887158]
[1754744139080,0.34096811,117170.0,117160.0,0.14816486]
[1754744142847,0.34096811,117170.0,117160.0,0.14522486]
[1754744143015,0.34413811,117170.0,117160.0,0.14522486]
[1754744146290,0.34096811,117170.0,117160.0,0.14522486]
[1754744147009,0.34096811,117170.0,117160.0,0.31593158]
[1754744154228,0.34096811,117170.0,117160.0,0.14522486]
[1754744154822,0.70836811,117170.0,117160.0,0.005]
[1754744156049,0.70736811,117170.0,117160.0,0.003]
[1754744156529,0.70936811,117170.0,117160.0,0.003]
[1754744156964,0.18815574,117160.0,117150.0,0.12964]
[1754744157149,0.3667421,117160.0,117150.0,0.12964]
[1754744159998,0.3923761,117160.0,117150.0,0.12964]
[1754744161236,0.3923761,117160.0,117150.0,0.13064]
[1754744174227,0.28320283,117160.0,117150.0,0.4512095]
[1754744174429,0.25756883,117160.0,117150.0,0.13595]
[1754744175072,0.27501785,117160.0,117150.0,0.13595]
[1754744190732,0.27705785,117160.0,117150.0,0.13595]
[1754744194024,0.28012785,117160.0,117150.0,0.13064]
[1754744194240,0.36550353,117160.0,117150.0,0.13064]
[1754744194891,0.36243353,117160.0,117150.0,0.1359]
[1754744195102,0.36039353,117160.0,117150.0,0.1359]
[1754744195329,0.27501785,117160.0,117150.0,0.4511595]
[1754744196028,0.27501785,117160.0,117150.0,0.1359]
[1754744197917,0.27705785,117160.0,117150.0,0.1359]
[1754744200211,0.19019574,117160.0,117150.0,0.1359]
[1754744200497,0.18815574,117160.0,117150.0,0.4511595]
[1754744204533,0.18815574,117160.0,117150.0,0.4556975]
[1754744206276,0.19019574,117160.0,117150.0,0.4556975]
[1754744211049,0.18815574,117160.0,117150.0,0.4556975]
[1754744211563,0.18815574,117160.0,117150.0,0.62641879]
[1754744213449,0.18815574,117160.0,117150.0,0.62188079]
[1754744224044,0.01744902,117160.0,117150.0,0.62188079]
[1754744225370,0.01291202,117160.0,117150.0,0.62188079]
[1754744226516,0.17069215,117170.0,117150.0,0.62188079]
[1754744226730,0.26070426,117170.0,117160.0,0.3152595]
[1754744226941,0.28848226,117170.0,117150.0,0.30461129]
[1754744227149,0.28848226,117170.0,117160.0,0.3152595]
[1754744227356,0.30593128,117170.0,117160.0,0.3152595]
[1754744227562,0.30593128,117170.0,117160.0,0.48596622]
[1754744227766,0.30693128,117170.0,117160.0,0.3152595]
[1754744228397,0.30593128,117170.0,117160.0,0.3152595]
[1754744228601,0.30793128,117170.0,117160.0,0.3152595]
[1754744229223,0.31093128,117170.0,117160.0,0.48596622]
[1754744230321,0.030628,117170.0,117160.0,0.80621572]
[1754744230525,0.005,117170.0,117160.0,0.80621572]
[1754744231377,0.003,117170.0,117160.0,0.80621572]
[1754744231621,0.003,117170.0,117160.0,0.80721572]
[1754744232063,0.22229809,117180.0,117170.0,0.17069215]
[1754744232269,0.22444809,117180.0,117170.0,0.61745165]
[1754744232517,0.025625,117180.0,117170.0,0.62046165]
[1754744232757,0.17282759,117180.0,117170.0,0.62046165]
[1754744233595,0.17582759,117180.0,117170.0,0.62046165]
[1754744235367,0.17782759,117180.0,117170.0,0.62046165]
[1754744239160,0.17782759,117180.0,117170.0,0.30520215]
[1754744239378,0.17782759,117180.0,117170.0,0.62046165]
[1754744241857,0.17782759,117180.0,117170.0,0.4467595]
[1754744242071,0.18096759,117180.0,117170.0,0.12952]
[1754744242567,0.20659159,117180.0,117170.0,0.12952]
[1754744242762,0.18096759,117180.0,117170.0,0.12952]
[1754744243036,0.20659159,117180.0,117170.0,0.12952]
[1754744243255,0.24470254,117180.0,117170.0,0.12952]
[1754744243836,0.21907854,117180.0,117170.0,0.12952]
[1754744244249,0.24470254,117180.0,117170.0,0.12952]
[1754744245983,0.20659159,117180.0,117170.0,0.12952]
[1754744249081,0.17069215,117170.0,117150.0,0.58963633]
[1754744249275,0.17282215,117170.0,117160.0,0.13144]
[1754744249680,0.17596215,117170.0,117160.0,0.13144]
[1754744252314,0.17596215,117170.0,117160.0,0.30214672]
[1754744252524,0.17596215,117170.0,117160.0,0.61840622]
[1754744252525,0.17282215,117170.0,117160.0,0.61840622]
[1754744252752,0.17282215,117170.0,117160.0,0.13244]
[1754744252957,0.17282215,117170.0,117160.0,0.4476995]
[1754744254299,0.17282215,117170.0,117160.0,0.13244]
[1754744258553,0.17282215,117170.0,117160.0,0.30314672]
[1754744258975,0.17282215,117170.0,117160.0,0.13244]
[1754744259178,0.17282215,117170.0,117160.0,0.4476995]
[1754744261203,0.17282215,117170.0,117160.0,0.61840622]
[1754744261397,0.17282215,117170.0,117160.0,0.62142622]
[1754744261639,0.17282215,117170.0,117160.0,0.4507195]
[1754744264538,0.17282215,117170.0,117160.0,0.00598]
[1754744264883,0.17282215,117170.0,117160.0,0.13542]
[1754744266559,0.17282215,117170.0,117160.0,0.4506795]
[1754744270528,0.19349117,117170.0,117160.0,0.00296]
[1754744270677,0.31933256,117170.0,117160.0,0.13044]
[1754744270878,0.34496056,117170.0,117160.0,0.13044]
[1754744280293,0.30598128,117170.0,117160.0,0.13044]
[1754744283199,0.30598128,117170.0,117160.0,0.13258]
[1754744283602,0.30598128,117170.0,117160.0,0.13044]
[1754744314740,0.30598128,117170.0,117160.0,0.13258]
[1754744316127,0.30276128,117170.0,117160.0,0.13258]
[1754744317432,0.35041217,117170.0,117160.0,0.13258]
[1754744322809,0.35041217,117170.0,117160.0,0.13571]
[1754744323014,0.35041217,117170.0,117160.0,0.4509695]
[1754744323236,0.30276128,117170.0,117160.0,0.4509695]
[1754744324070,0.30276128,117170.0,117160.0,0.13571]
[1754744332055,0.30276128,117170.0,117160.0,0.13258]
[1754744333832,0.30276128,117170.0,117160.0,0.4478395]
[1754744334285,0.30276128,117170.0,117160.0,0.4507895]
[1754744346424,0.30276128,117170.0,117160.0,0.4507095]
[1754744347831,0.30276128,117170.0,117160.0,0.13545]
[1754744348032,0.30276128,117170.0,117160.0,0.4507095]
[1754744348789,0.30276128,117170.0,117160.0,0.13545]
[1754744349984,0.35003952,117170.0,117160.0,0.13545]
[1754744350319,0.35003952,117170.0,117160.0,0.1325]
[1754744352815,0.35298952,117170.0,117160.0,0.1325]
[1754744353247,0.35298952,117170.0,117160.0,0.13036]
[1754744356540,0.35298952,117170.0,117160.0,0.001]
[1754744356752,0.35298952,117170.0,117160.0,0.13032]
[1754744379601,0.35298952,117170.0,117160.0,0.13231]
[1754744393477,0.35003952,117170.0,117160.0,0.13231]
[1754744397148,0.35301952,117170.0,117160.0,0.13231]
[1754744399852,0.35301952,117170.0,117160.0,0.13032]
[1754744403016,0.35301952,117170.0,117160.0,0.001]
[1754744403216,0.35301952,117170.0,117160.0,0.13024]
[1754744413429,0.35301952,117170.0,117160.0,0.001]
[1754744418162,0.69301952,117170.0,117160.0,0.001]
[1754744418870,0.82225952,117170.0,117160.0,0.001]
[1754744421794,0.83099092,117170.0,117160.0,0.001]
[1754744422510,0.82225952,117170.0,117160.0,0.001]
[1754744427587,0.83063363,117170.0,117160.0,0.001]
[1754744431535,0.82225952,117170.0,117160.0,0.001]
[1754744432967,0.82214644,117170.0,117160.0,0.001]
[1754744434362,0.83071149,117170.0,117160.0,0.001]
[1754744436732,0.82214644,117170.0,117160.0,0.001]
[1754744441837,0.82157902,117170.0,117160.0,0.001]
[1754744452221,0.17072129,117150.0,117140.0,0.0809604]
[1754744452428,0.17072129,117150.0,117140.0,0.0830304]
[1754744452858,0.19635329,117150.0,117140.0,0.0830304]
[1754744453572,0.19635329,117150.0,117140.0,0.08350266]
[1754744454901,0.19635329,117150.0,117140.0,0.08450266]
[1754744456159,0.24598054,117150.0,117140.0,0.01502504]
[1754744457448,0.19635329,117150.0,117140.0,0.01502504]
[1754744467738,0.17072129,117150.0,117140.0,0.01502504]
[1754744471370,0.17273129,117150.0,117140.0,0.01502504]
[1754744473362,0.17273129,117150.0,117140.0,0.01201504]
[1754744478673,0.17591129,117150.0,117140.0,0.01201504]
[1754744481295,0.17581739,117150.0,117140.0,0.01201504]
[1754744495021,0.17581739,117150.0,117140.0,0.18275091]
[1754744495817,0.17263739,117150.0,117140.0,0.18275091]
[1754744496004,0.17263739,117150.0,117140.0,0.01201504]
[1754744499226,0.17581739,117150.0,117140.0,0.01201504]
[1754744499635,0.17581739,117150.0,117140.0,0.14213504]
[1754744500270,0.17581739,117150.0,117140.0,0.00994504]
[1754744500478,0.17581739,117150.0,117140.0,0.14114504]
[1754744503332,0.17581739,117150.0,117140.0,0.14329504]
[1754744520696,0.17263739,117150.0,117140.0,0.46152454]
[1754744525889,0.17263739,117150.0,117140.0,0.14626504]
[1754744526206,0.17263739,117150.0,117140.0,0.46152454]
[1754744528141,0.17263739,117150.0,117140.0,0.14626504]
[1754744528345,0.17263739,117150.0,117140.0,0.46152454]
[1754744529507,0.17263739,117150.0,117140.0,0.46100454]
[1754744530299,0.17263739,117150.0,117140.0,0.14574504]
[1754744530731,0.17263739,117150.0,117140.0,0.14277504]
[1754744537910,0.17263739,117150.0,117140.0,0.45803454]
[1754744541589,0.17263739,117150.0,117140.0,0.46096454]
[1754744548674,0.17263739,117150.0,117140.0,0.14570504]
[1754744549066,0.17263739,117150.0,117140.0,0.46096454]
[1754744550156,0.17263739,117150.0,117140.0,0.14570504]
[1754744550489,0.17263739,117150.0,117140.0,0.46096454]
[1754744552278,0.17263739,117150.0,117140.0,0.14570504]
[1754744552454,0.17263739,117150.0,117140.0,0.46096454]
[1754744561945,0.17263739,117150.0,117140.0,0.51307288]
[1754744562884,0.17263739,117150.0,117140.0,0.14570504]
[1754744563048,0.17263739,117150.0,117140.0,0.51307288]
[1754744563877,0.17263739,117150.0,117140.0,0.14570504]
[1754744564056,0.17263739,117150.0,117140.0,0.51307288]
[1754744573958,0.17263739,117150.0,117140.0,0.14570504]
[1754744574131,0.17263739,117150.0,117140.0,0.51307288]
[1754744581307,0.17263739,117150.0,117140.0,0.14570504]
[1754744581503,0.17263739,117150.0,117140.0,0.51307288]
[1754744583779,0.17263739,117150.0,117140.0,0.14570504]
[1754744583973,0.17263739,117150.0,117140.0,0.51307288]
[1754744586683,0.17263739,117150.0,117140.0,0.14570504]
[1754744586890,0.17263739,117150.0,117140.0,0.51307288]
[1754744587955,0.19826939,117150.0,117140.0,0.51307288]
[1754744591402,0.17263739,117150.0,117140.0,0.51307288]
[1754744593652,0.19826839,117150.0,117140.0,0.51014288]
[1754744594941,0.19826839,117150.0,117140.0,0.14277504]
[1754744595140,0.19826839,117150.0,117140.0,0.51014288]
[1754744601902,0.19826839,117150.0,117140.0,0.14277504]
[1754744602108,0.17263739,117150.0,117140.0,0.51014288]
[1754744604828,0.17263739,117150.0,117140.0,0.51313288]
[1754744605167,0.17263739,117150.0,117140.0,0.14576504]
[1754744610771,0.17263739,117150.0,117140.0,0.51313288]
[1754744612229,0.19826939,117150.0,117140.0,0.51313288]
[1754744614149,0.17263739,117150.0,117140.0,0.51313288]
[1754744615648,0.17263739,117150.0,117140.0,0.14576504]
[1754744615837,0.17263739,117150.0,117140.0,0.51313288]
[1754744617150,0.17263739,117150.0,117140.0,0.14576504]
[1754744620344,0.20983215,117150.0,117140.0,0.14576504]
[1754744626096,0.20983215,117150.0,117140.0,0.51313288]
[1754744626341,0.17263739,117150.0,117140.0,0.51313288]
[1754744627956,0.17062739,117150.0,117140.0,0.51313288]
[1754744628188,0.19635024,117160.0,117140.0,1.05123659]
[1754744628369,0.17069571,117170.0,117150.0,0.91080098]
[1754744628554,0.17069215,117170.0,117160.0,1.0403224]
[1754744628757,0.17069215,117170.0,117160.0,0.86961568]
[1754744629014,0.20483846,117180.0,117160.0,1.0403224]
[1754744629180,0.29170057,117180.0,117170.0,0.37057784]
[1754744629378,0.29170057,117180.0,117170.0,0.00532]
[1754744629379,0.30914959,117180.0,117170.0,0.00532]
[1754744630090,0.30914959,117180.0,117170.0,0.37268784]
[1754744630296,0.30914959,117180.0,117170.0,0.00532]
[1754744630846,0.30914959,117180.0,117170.0,0.37268784]
[1754744630972,0.31414959,117180.0,117170.0,0.00532]
[1754744632072,0.36156704,117180.0,117170.0,0.00532]
[1754744632700,0.35656704,117180.0,117170.0,0.00532]
[1754744633106,0.35856704,117180.0,117170.0,0.00532]
[1754744633704,0.36061704,117180.0,117170.0,0.00532]
[1754744637907,0.31519959,117180.0,117170.0,0.00532]
[1754744641063,0.31519959,117180.0,117170.0,0.00211]
[1754744643591,0.31834959,117180.0,117170.0,0.00211]
[1754744644792,0.31519959,117180.0,117170.0,0.00211]
[1754744645906,0.28957259,117180.0,117170.0,0.00211]
[1754744646109,0.31519959,117180.0,117170.0,0.00211]
[1754744646577,0.31519959,117180.0,117170.0,0.00532]
[1754744646782,0.28957259,117180.0,117170.0,0.00532]
[1754744646992,0.28957259,117180.0,117170.0,0.00211]
[1754744648468,0.28957259,117180.0,117170.0,0.00532]
[1754744649423,0.29272259,117180.0,117170.0,0.00211]
[1754744650264,0.17069215,117170.0,117160.0,0.50013784]
[1754744650466,0.17069215,117170.0,117160.0,0.50224784]